fUST/lending_fUST_20250113
["ID","MTS","AMOUNT","RATE_DAILY","PERIOD"]
[348752336,1736771366400,-504.58186683,0.00019178,2]
[348752337,1736771366422,-500.0,0.00019178,2]
[348752338,1736771366443,-500.0,0.00019178,2]
[348752339,1736771366465,-356.38326123,0.00019178,2]
[348752340,1736771366487,-500.0,0.00019178,2]
[348752341,1736771366511,-500.0,0.00019178,2]
[348752342,1736771366532,-386.68140035,0.00019178,2]
[348752343,1736771366552,-500.0,0.00019178,2]
[348752344,1736771366573,-500.0,0.00019178,2]
[348752345,1736771366598,-500.0,0.00019178,2]
[348752346,1736771366620,-500.0,0.00019178,2]
[348752347,1736771366641,-500.0,0.00019178,2]
[348752348,1736771366664,-500.0,0.00019178,2]
[348752349,1736771366687,-500.0,0.00019178,2]
[348752350,1736771366709,-500.0,0.00019178,2]
[348752351,1736771366730,-500.0,0.00019178,2]
[348752352,1736771366751,-500.0,0.00019178,2]
[348752353,1736771366774,-500.0,0.00019178,2]
[348752354,1736771366795,-500.0,0.00019178,2]
[348752355,1736771366816,-500.0,0.00019178,2]
[348752356,1736771366837,-505.17893156,0.00019178,2]
[348752357,1736771366858,-226.18278332,0.00019178,2]
[348752358,1736771366879,-500.0,0.00019178,2]
[348752359,1736771366901,-500.0,0.00019178,2]
[348752360,1736771366921,-500.0,0.00019178,2]
[348752361,1736771366942,-500.0,0.00019178,2]
[348752362,1736771366962,-503.53312682,0.00019178,2]
[348752363,1736771366984,-500.0,0.00019178,2]
[348752364,1736771367006,-364.18,0.00019178,2]
[348752365,1736771367029,-500.0,0.00019178,2]
[348752366,1736771367051,-501.49934304,0.00019178,2]
[348752367,1736771367072,-500.0,0.00019178,2]
[348752368,1736771367092,-500.0,0.00019178,2]
[348752369,1736771367113,-500.0,0.00019178,2]
[348752370,1736771367133,-500.0,0.00019178,2]
[348752371,1736771367155,-500.0,0.00019178,2]
[348752372,1736771367176,-245.36958428,0.00019178,2]
[348752373,1736771367197,-551.62,0.00019178,2]
[348752374,1736771367219,-500.0,0.00019178,2]
[348752375,1736771367242,-500.0,0.00019178,2]
[348752376,1736771367264,-500.0,0.00019178,2]
[348752377,1736771367288,-500.0,0.00019178,2]
[348752378,1736771367308,-501.11897332,0.00019178,2]
[348752379,1736771367328,-500.0,0.00019178,2]
[348752380,1736771367351,-500.0,0.00019178,2]
[348752381,1736771367372,-500.0,0.00019178,2]
[348752382,1736771367393,-500.0,0.00019178,2]
[348752383,1736771367417,-500.0,0.00019178,2]
[348752384,1736771367440,-500.0,0.00019178,2]
[348752385,1736771367463,-500.0,0.00019178,2]
[348752386,1736771367485,-500.0,0.00019178,2]
[348752387,1736771367505,-500.0,0.00019178,2]
[348752388,1736771367526,-500.0,0.00019178,2]
[348752389,1736771367548,-624.93,0.00019178,2]
[348752390,1736771367570,-500.0,0.00019178,2]
[348752391,1736771367590,-500.0,0.00019178,2]
[348752392,1736771367614,-500.0,0.00019178,2]
[348752393,1736771367635,-500.0,0.00019178,2]
[348752394,1736771367657,-500.0,0.00019178,2]
[348752395,1736771367679,-500.0,0.00019178,2]
[348752396,1736771367700,-500.0,0.00019178,2]
[348752397,1736771367720,-503.42550006,0.00019178,2]
[348752398,1736771367741,-500.0,0.00019178,2]
[348752399,1736771367763,-500.0,0.00019178,2]
[348752400,1736771367785,-500.0,0.00019178,2]
[348752401,1736771367806,-500.0,0.00019178,2]
[348752402,1736771367826,-479.88934824,0.00019178,2]
[348752403,1736771367848,-500.0,0.00019178,2]
[348752404,1736771367870,-500.0,0.00019178,2]
[348752405,1736771367892,-516.14223237,0.00019178,2]
[348752406,1736771367913,-500.0,0.00019178,2]
[348752407,1736771367934,-500.0,0.00019178,2]
[348752408,1736771367955,-500.0,0.00019178,2]
[348752409,1736771367976,-500.0,0.00019178,2]
[348752410,1736771367997,-503.12677182,0.00019178,2]
[348752411,1736771368019,-535.5538335,0.00019178,2]
[348752412,1736771368040,-500.0,0.00019178,2]
[348752413,1736771368060,-500.0,0.00019178,2]
[348752414,1736771368082,-486.63368931,0.00019178,2]
[348752415,1736771368104,-500.0,0.00019178,2]
[348752416,1736771368126,-500.0,0.00019178,2]
[348752417,1736771368148,-500.0,0.00019178,2]
[348752418,1736771368172,-500.0,0.00019178,2]
[348752419,1736771368193,-500.0,0.00019178,2]
[348752420,1736771368214,-500.0,0.00019178,2]
[348752421,1736771368236,-500.0,0.00019178,2]
[348752422,1736771368256,-500.0,0.00019178,2]
[348752423,1736771368278,-502.47658975,0.00019178,2]
[348752424,1736771368300,-500.0,0.00019178,2]
[348752425,1736771368323,-169.75193112,0.00019178,2]
[348752426,1736771368346,-500.0,0.00019178,2]
[348752427,1736771368368,-500.0,0.00019178,2]
[348752428,1736771368389,-500.0,0.00019178,2]
[348752429,1736771368412,-500.0,0.00019178,2]
[348752430,1736771368434,-500.0,0.00019178,2]
[348752431,1736771368456,-500.0,0.00019178,2]
[348752432,1736771368476,-500.0,0.00019178,2]
[348752433,1736771368499,-500.0,0.00019178,2]
[348752434,1736771368519,-501.78238683,0.00019178,2]
[348752435,1736771368540,-500.0,0.00019178,2]
[348752436,1736771368561,-500.0,0.00019178,2]
[348752437,1736771368584,-1729.85,0.00019178,2]
[348752438,1736771368608,-500.0,0.00019178,2]
[348752439,1736771368632,-500.0,0.00019178,2]
[348752440,1736771368656,-500.0,0.00019178,2]
[348752441,1736771368677,-503.63314277,0.00019178,2]
[348752442,1736771368700,-500.0,0.00019178,2]
[348752443,1736771368722,-500.0,0.00019178,2]
[348752444,1736771368745,-500.0,0.00019178,2]
[348752445,1736771368767,-500.0,0.00019178,2]
[348752446,1736771368788,-391.9175999,0.00019178,2]
[348752447,1736771368810,-502.2513467,0.00019178,2]
[348752448,1736771368831,-352.3072961,0.00019178,2]
[348752449,1736771368854,-500.0,0.00019178,2]
[348752450,1736771368876,-500.0,0.00019178,2]
[348752451,1736771368898,-500.0,0.00019178,2]
[348752452,1736771369012,-500.0,0.00019178,2]
[348752453,1736771369036,-500.0,0.00019178,2]
[348752454,1736771369057,-500.0,0.00019178,2]
[348752455,1736771369079,-500.0,0.00019178,2]
[348752456,1736771369100,-154.52,0.00019178,2]
[348752457,1736771369122,-500.0,0.00019233,3]
[348752458,1736771369144,-15403.7940957,0.00019234,2]
[348752459,1736771369168,-239.732,0.00019371,2]
[348752460,1736771369191,-1054.36,0.00019452,3]
[348752461,1736771369213,-500.0,0.00019452,3]
[348752462,1736771369236,-457.29,0.00019452,3]
[348752463,1736771369257,-500.0,0.00019452,3]
[348752464,1736771369279,-244.33,0.00019452,3]
[348752465,1736771369301,-264.25,0.00019452,3]
[348752466,1736771369323,-190.37,0.00019452,3]
[348752467,1736771369344,-437.59,0.00019452,3]
[348752468,1736771369366,-500.0,0.00019452,3]
[348752469,1736771369387,-500.0,0.00019452,3]
[348752470,1736771369418,-643.95,0.00019452,3]
[348752471,1736771369439,-245.73145315,0.00019452,3]
[348752472,1736771369461,-500.0,0.00019452,3]
[348752473,1736771369483,-150.35659007,0.00019452,3]
[348752474,1736771369506,-500.0,0.00019452,3]
[348752475,1736771369529,-500.0,0.00019452,3]
[348752476,1736771369552,-500.0,0.00019452,3]
[348752477,1736771369574,-500.0,0.00019452,3]
[348752478,1736771369596,-500.0,0.00019452,3]
[348752479,1736771369622,-500.0,0.00019452,3]
[348752480,1736771369645,-500.0,0.00019452,3]
[348752481,1736771369668,-590.9,0.00019452,3]
[348752482,1736771369692,-500.0,0.00019452,3]
[348752483,1736771369713,-500.0,0.00019452,3]
[348752484,1736771369734,-500.0,0.00019452,3]
[348752485,1736771369758,-500.0,0.00019452,2]
[348752486,1736771369779,-500.0,0.00019452,2]
[348752487,1736771369800,-609.68924247,0.00019452,3]
[348752488,1736771369821,-500.0,0.00019452,3]
[348752489,1736771369843,-500.0,0.00019452,3]
[348752490,1736771369864,-500.0,0.00019452,3]
[348752491,1736771369886,-1729.85,0.00019452,3]
[348752492,1736771369909,-500.0,0.00019452,3]
[348752493,1736771369930,-500.0,0.00019452,3]
[348752494,1736771369951,-500.0,0.00019452,3]
[348752495,1736771369972,-500.0,0.00019452,3]
[348752496,1736771369994,-500.0,0.00019722,3]
[348752497,1736771370014,-562.10746282,0.00019724,3]
[348752498,1736771370042,-500.0,0.00019724,3]
[348752499,1736771370064,-500.0,0.00019724,3]
[348752500,1736771370084,-500.0,0.00019724,3]
[348752501,1736771370105,-501.83930584,0.00019724,3]
[348752502,1736771370126,-500.0,0.00019724,3]
[348752503,1736771370146,-502.62623451,0.00019724,3]
[348752504,1736771370170,-506.29419089,0.00019724,3]
[348752505,1736771370190,-502.15739291,0.00019724,3]
[348752506,1736771370212,-503.41154496,0.00019724,3]
[348752507,1736771370233,-504.90542848,0.00019724,3]
[348752508,1736771370254,-502.58085476,0.00019724,3]
[348752509,1736771370275,-500.0,0.00019724,3]
[348752510,1736771370295,-500.0,0.00019724,3]
[348752511,1736771370316,-500.0,0.00019724,3]
[348752512,1736771370336,-500.0,0.00019724,3]
[348752513,1736771370356,-500.0,0.00019724,3]
[348752514,1736771370377,-500.0,0.00019724,3]
[348752515,1736771370396,-354.31034213,0.00019724,3]
[348752516,1736771370418,-500.0,0.00019724,3]
[348752517,1736771370438,-500.0,0.00019724,3]
[348752518,1736771370459,-500.0,0.00019724,3]
[348752519,1736771370479,-500.0,0.00019724,3]
[348752520,1736771370500,-500.0,0.00019724,3]
[348752521,1736771370521,-205.37914726,0.00019724,3]
[348752522,1736771370543,-500.0,0.00019725,3]
[348752523,1736771370564,-500.0,0.00019725,2]
[348752524,1736771370585,-180.12615176,0.00019725,2]
[348752525,1736771370608,-185.31678655,0.00019725,2]
[348752526,1736771370630,-618.17564473,0.00019725,2]
[348752527,1736771370652,-500.0,0.00019725,2]
[348752528,1736771370677,-1054.36,0.00019726,3]
[348752529,1736771370700,-500.0,0.00019726,3]
[348752530,1736771370722,-196.98,0.00019726,3]
[348752531,1736771370743,-500.0,0.00019726,3]
[348752532,1736771370767,-500.0,0.00019726,3]
[348752533,1736771370788,-500.0,0.00019726,3]
[348752534,1736771370810,-566.16066625,0.00019726,3]
[348752535,1736771370832,-334.76984561,0.00019726,3]
[348752594,1736771432457,-268.40378456,0.000189,2]
[348752596,1736771432469,-17.75891437,0.00019178,2]
[348752599,1736771432482,-238.43108563,0.00019178,2]
[348752601,1736771432491,-359.39693496,0.00019178,2]
[348752603,1736771432501,-500.37,0.00019178,2]
[348752605,1736771432511,-500.0,0.00019178,2]
[348752607,1736771432520,-500.0,0.00019452,3]
[348752609,1736771432530,-500.0,0.00019726,3]
[348752611,1736771432540,-500.0,0.00019726,2]
[348752613,1736771432551,-500.0,0.00019726,3]
[348752615,1736771432561,-1729.85,0.00019726,3]
[348752617,1736771432571,-293.98487758,0.00019726,3]
[348752619,1736771432582,-159.04,0.00019726,3]
[348752621,1736771432591,-500.0,0.00019726,3]
[348752623,1736771432600,-324.45381394,0.000199,2]
[348752625,1736771432610,-4085.24144383,0.0002,7]
[348752627,1736771432622,-1054.36,0.0002,3]
[348752629,1736771432632,-500.0,0.0002,3]
[348752631,1736771432641,-182.27,0.0002,3]
[348752633,1736771432652,-500.0,0.0002,2]
[348752636,1736771432662,-500.0,0.0002,3]
[348752637,1736771432673,-1729.85,0.0002,3]
[348752639,1736771432683,-34972.31480963,0.0002,5]
[348752642,1736771432697,-11126.48101712,0.0002,5]
[348752644,1736771432708,-500.0,0.0002,3]
[348752646,1736771432719,-324.45381383,0.00020038,2]
[348752648,1736771432728,-324.45381383,0.00020176,2]
[348752650,1736771432738,-560.15,0.000202,2]
[348752652,1736771432747,-1054.36,0.00020273,3]
[348752654,1736771432757,-500.0,0.00020273,3]
[348752656,1736771432767,-500.0,0.00020273,2]
[348752658,1736771432776,-500.0,0.00020273,3]
[348752660,1736771432786,-1729.85,0.00020273,3]
[348752662,1736771432795,-500.0,0.00020273,3]
[348752664,1736771432805,-324.45381383,0.00020314,2]
[348752666,1736771432814,-191.297314,0.00020447,2]
[348752668,1736771432824,-324.45381383,0.00020452,2]
[348752670,1736771432834,-179.5486893,0.00020521,2]
[348752672,1736771432843,-500.0,0.00020546,3]
[348752674,1736771432853,-1054.36,0.00020547,3]
[348752676,1736771432862,-500.0,0.00020547,3]
[348752678,1736771432872,-500.0,0.00020547,3]
[348752681,1736771432882,-500.0,0.00020547,3]
[348752683,1736771432891,-500.0,0.00020547,3]
[348752685,1736771432900,-500.0,0.00020547,2]
[348752687,1736771432910,-500.0,0.00020547,3]
[348752689,1736771432919,-1729.85,0.00020547,3]
[348752691,1736771432929,-411.79,0.00020547,3]
[348752693,1736771432940,-324.45381383,0.0002059,2]
[348752695,1736771432949,-324.45381383,0.00020728,2]
[348752697,1736771432959,-176.71377592,0.00020765,2]
[348752699,1736771432971,-1054.36,0.00020821,3]
[348752701,1736771432981,-500.0,0.00020821,3]
[348752703,1736771432991,-81.63301979,0.00020821,2]
[348752706,1736771433008,-418.36698021,0.00020821,2]
[348752708,1736771433019,-167.38310421,0.00020821,3]
[348752710,1736771433031,-332.61689579,0.00020821,3]
[348752712,1736771433044,-1729.85,0.00020821,3]
[348752714,1736771433055,-324.45381383,0.00020866,2]
[348752716,1736771433064,-30.33647711,0.00021,2]
[348752719,1736771433082,-7953.16841348,0.00021,2]
[348752924,1736771438200,-578.07261672,0.0002082,2]
[348752925,1736771438210,-550.0,0.0002082,2]
[348752926,1736771438221,-546.65305419,0.0002082,2]
[348752927,1736771438231,-8696.6834393,0.00021,2]
[348752928,1736771438242,-324.45381383,0.00021003,2]
[348752929,1736771438253,-500.0,0.00021094,3]
[348752930,1736771438263,-1054.36,0.00021095,3]
[348752931,1736771438273,-500.0,0.00021095,3]
[348752932,1736771438283,-500.0,0.00021095,2]
[348752933,1736771438293,-500.0,0.00021095,3]
[348752934,1736771438302,-1729.85,0.00021095,3]
[348752935,1736771438312,-324.45381383,0.00021141,2]
[348752936,1736771438322,-324.45381383,0.00021279,2]
[348752937,1736771438331,-1054.36,0.00021369,3]
[348752938,1736771438341,-500.0,0.00021369,3]
[348752939,1736771438352,-500.0,0.00021369,2]
[348752940,1736771438362,-500.0,0.00021369,3]
[348752941,1736771438373,-1729.85,0.00021369,3]
[348752942,1736771438383,-324.45381383,0.00021417,2]
[348752943,1736771438392,-324.45381383,0.00021555,2]
[348752944,1736771438402,-1054.36,0.00021643,3]
[348752945,1736771438412,-500.0,0.00021643,3]
[348752946,1736771438422,-500.0,0.00021643,2]
[348752947,1736771438431,-500.0,0.00021643,3]
[348752948,1736771438441,-1729.85,0.00021643,3]
[348752949,1736771438450,-324.45381383,0.00021693,2]
[348752950,1736771438459,-324.45381383,0.00021831,2]
[348752951,1736771438469,-1054.36,0.00021917,3]
[348752952,1736771438481,-500.0,0.00021917,3]
[348752953,1736771438490,-1000.0,0.00021917,2]
[348752954,1736771438500,-1000.0,0.00021917,2]
[348752955,1736771438510,-500.0,0.00021917,2]
[348752956,1736771438520,-500.0,0.00021917,3]
[348752957,1736771438530,-1729.85,0.00021917,3]
[348752958,1736771438539,-324.45381383,0.00021969,2]
[348752959,1736771438549,-395.0,0.00021982,2]
[348752960,1736771438559,-80316.29699651,0.00022,2]
[348752961,1736771438568,-799.89905456,0.00022,5]
[348752962,1736771438578,-324.45381383,0.00022107,2]
[348752963,1736771438588,-500.0,0.0002219,2]
[348752964,1736771438597,-632.72295131,0.0002219,2]
[348752965,1736771438607,-1054.36,0.00022191,3]
[348752966,1736771438618,-500.0,0.00022191,3]
[348752967,1736771438629,-500.0,0.00022191,2]
[348752968,1736771438639,-500.0,0.00022191,3]
[348752969,1736771438648,-1729.85,0.00022191,3]
[348752970,1736771438657,-148286.46499566,0.00022191,2]
[348752971,1736771438669,-324.45381383,0.00022245,2]
[348752972,1736771438679,-324.45381383,0.00022383,2]
[348752973,1736771438688,-521.177,0.0002244,2]
[348752974,1736771438698,-500.0,0.00022464,3]
[348752975,1736771438832,-462.96,0.00022464,2]
[348752976,1736771438842,-509.59773093,0.00022464,3]
[348752977,1736771438852,-500.0,0.00022464,3]
[348752978,1736771438862,-1054.36,0.00022465,3]
[348752979,1736771438872,-500.0,0.00022465,3]
[348752980,1736771438881,-500.0,0.00022465,2]
[348752981,1736771438890,-500.0,0.00022465,3]
[348752982,1736771438900,-1729.85,0.00022465,3]
[348752983,1736771438909,-324.45381383,0.00022521,2]
[348752984,1736771438919,-307.2496757,0.00022658,2]
[348752985,1736771438928,-324.45381383,0.00022659,2]
[348752986,1736771438938,-500.0,0.00022738,3]
[348752987,1736771438947,-461.7,0.00022738,3]
[348752988,1736771438957,-1054.36,0.00022739,3]
[348752989,1736771438967,-500.0,0.00022739,3]
[348752990,1736771438978,-500.0,0.00022739,2]
[348752991,1736771438988,-500.0,0.00022739,3]
[348752992,1736771438997,-1729.85,0.00022739,3]
[348752993,1736771439007,-306.0,0.00022795,2]
[348752994,1736771439016,-324.45381383,0.00022797,2]
[348752995,1736771439026,-500.0,0.00022876,2]
[348752996,1736771439035,-7085.62748791,0.0002289,5]
[348752997,1736771439046,-324.45381383,0.00022934,2]
[348752998,1736771439055,-7438.69753278,0.00023,2]
[348752999,1736771439064,-7438.69753278,0.00023,3]
[348753000,1736771439074,-162.12319991,0.00023002,2]
[348753001,1736771439083,-503.90692776,0.00023002,2]
[348753002,1736771439093,-1054.36,0.00023013,3]
[348753003,1736771439103,-500.0,0.00023013,3]
[348753004,1736771439112,-500.0,0.00023013,2]
[348753005,1736771439122,-500.0,0.00023013,3]
[348753006,1736771439131,-1729.85,0.00023013,3]
[348753007,1736771439141,-324.45381383,0.00023072,2]
[348753008,1736771439150,-321.9109041,0.00023152,2]
[348753009,1736771439160,-324.45381383,0.0002321,2]
[348753010,1736771439170,-1054.36,0.00023287,3]
[348753011,1736771439179,-500.0,0.00023287,3]
[348753012,1736771439189,-500.0,0.00023287,2]
[348753013,1736771439199,-500.0,0.00023287,3]
[348753014,1736771439209,-1729.85,0.00023287,3]
[348753015,1736771439219,-324.45381383,0.00023348,2]
[348753016,1736771439231,-849.0227409,0.00023387,2]
[348753017,1736771439240,-10788.28100239,0.00023474,2]
[348753018,1736771439250,-324.45381383,0.00023486,2]
[348753019,1736771439259,-9738.38231836,0.000235,2]
[348753020,1736771439270,-907.63868719,0.00023506,10]
[348753021,1736771439279,-851.34193587,0.00023521,2]
[348753022,1736771439289,-2555.41000617,0.00023525,2]
[348753023,1736771439298,-1054.36,0.00023561,3]
[348753024,1736771439308,-500.0,0.00023561,3]
[348753025,1736771439317,-500.0,0.00023561,2]
[348753026,1736771439327,-500.0,0.00023561,3]
[348753027,1736771439337,-1729.85,0.00023561,3]
[348753028,1736771439347,-151.0,0.000236,9]
[348753029,1736771439356,-151.0,0.000236,8]
[348753030,1736771439366,-151.0,0.000236,7]
[348753031,1736771439375,-151.0,0.000236,8]
[348753032,1736771439385,-151.0,0.000236,10]
[348753033,1736771439395,-151.0,0.000236,5]
[348753034,1736771439404,-151.0,0.000236,8]
[348753035,1736771439413,-151.0,0.000236,6]
[348753036,1736771439423,-171.96,0.000236,31]
[348753037,1736771439432,-171.96,0.000236,31]
[348753038,1736771439442,-171.96,0.000236,31]
[348753039,1736771439451,-171.96,0.000236,31]
[348753040,1736771439461,-171.96,0.000236,31]
[348753041,1736771439488,-4038.05161986,0.000236,10]
[348753042,1736771439499,-151.0,0.00023617,7]
[348753043,1736771439510,-151.0,0.00023617,7]
[348753044,1736771439520,-151.0,0.00023617,7]
[348753045,1736771439531,-151.0,0.00023617,7]
[348753046,1736771439541,-254.91974,0.00023617,7]
[348753047,1736771439551,-154.531371,0.00023617,7]
[348753048,1736771439561,-154.531371,0.00023617,7]
[348753049,1736771439571,-154.531371,0.00023617,7]
[348753050,1736771439582,-154.531371,0.00023617,7]
[348753051,1736771439593,-154.531371,0.00023617,7]
[348753052,1736771439603,-154.531371,0.00023617,7]
[348753053,1736771439614,-154.531371,0.00023617,7]
[348753054,1736771439627,-154.531371,0.00023617,7]
[348753055,1736771439638,-154.531371,0.00023617,7]
[348753056,1736771439648,-154.531371,0.00023617,7]
[348753057,1736771439658,-154.531371,0.00023617,7]
[348753058,1736771439670,-154.531371,0.00023617,7]
[348753059,1736771439680,-154.531371,0.00023617,7]
[348753060,1736771439690,-154.531371,0.00023617,7]
[348753061,1736771439702,-154.531371,0.00023617,7]
[348753062,1736771439713,-154.531371,0.00023617,7]
[348753063,1736771439726,-154.531371,0.00023617,7]
[348753064,1736771439736,-154.531371,0.00023617,7]
[348753065,1736771439746,-154.531371,0.00023617,7]
[348753066,1736771439756,-154.531373,0.00023617,7]
[348753068,1736771439767,-151.0,0.00023617,7]
[348753069,1736771439778,-151.0,0.00023617,7]
[348753070,1736771439788,-151.0,0.00023617,7]
[348753071,1736771439798,-242.346264,0.00023617,7]
[348753072,1736771439809,-151.0,0.00023621,7]
[348753073,1736771439818,-151.0,0.00023621,7]
[348753074,1736771439828,-151.0,0.00023621,7]
[348753075,1736771439838,-246.565347,0.00023621,7]
[348753076,1736771439847,-151.0,0.00023621,7]
[348753077,1736771439857,-151.0,0.00023621,7]
[348753078,1736771439867,-151.0,0.00023621,7]
[348753079,1736771439877,-151.0,0.00023621,7]
[348753080,1736771439887,-151.0,0.00023621,7]
[348753081,1736771439897,-151.0,0.00023621,7]
[348753082,1736771439906,-151.0,0.00023621,7]
[348753083,1736771439916,-151.0,0.00023621,7]
[348753084,1736771439926,-151.0,0.00023621,7]
[348753086,1736771439936,-151.0,0.00023621,7]
[348753088,1736771439945,-151.0,0.00023621,7]
[348753090,1736771439955,-151.0,0.00023621,7]
[348753092,1736771439965,-151.0,0.00023621,7]
[348753093,1736771439978,-151.0,0.00023621,7]
[348753095,1736771439988,-169.31746,0.00023621,7]
[348753097,1736771439997,-331.40452878,0.00023622,2]
[348753099,1736771440007,-500.0,0.00023624,5]
[348753101,1736771440018,-500.0,0.00023624,5]
[348753102,1736771440028,-419.7696487,0.00023624,5]
[348753103,1736771440039,-500.0,0.00023624,5]
[348753105,1736771440049,-396.29806084,0.00023624,5]
[348753107,1736771440059,-151.0,0.00023624,7]
[348753109,1736771440069,-151.0,0.00023624,7]
[348753110,1736771440079,-186.637236,0.00023624,7]
[348753112,1736771440089,-151.0,0.00023624,7]
[348753113,1736771440099,-246.142301,0.00023624,7]
[348753114,1736771440109,-246.142301,0.00023624,7]
[348753115,1736771440119,-246.142301,0.00023624,7]
[348753116,1736771440129,-246.142301,0.00023624,7]
[348753117,1736771440138,-151.0,0.00023624,7]
[348753118,1736771440148,-151.0,0.00023624,7]
[348753120,1736771440158,-246.142301,0.00023624,7]
[348753122,1736771440167,-151.0,0.00023624,7]
[348753123,1736771440178,-246.142301,0.00023624,7]
[348753125,1736771440188,-151.0,0.00023624,7]
[348753127,1736771440197,-246.142301,0.00023624,7]
[348753128,1736771440206,-151.0,0.00023624,7]
[348753129,1736771440216,-246.142301,0.00023624,7]
[348753130,1736771440229,-151.0,0.00023624,7]
[348753132,1736771440238,-246.142301,0.00023624,7]
[348753134,1736771440247,-151.0,0.00023624,7]
[348753135,1736771440257,-246.142301,0.00023624,7]
[348753137,1736771440266,-246.142301,0.00023624,7]
[348753139,1736771440276,-246.142301,0.00023624,7]
[348753141,1736771440287,-151.0,0.00023624,7]
[348753142,1736771440296,-246.142301,0.00023624,7]
[348753143,1736771440306,-151.0,0.00023624,7]
[348753144,1736771440315,-151.0,0.00023624,7]
[348753145,1736771440324,-169.266567,0.00023624,7]
[348753146,1736771440334,-246.142301,0.00023624,7]
[348753147,1736771440344,-246.142301,0.00023624,7]
[348753148,1736771440353,-246.142301,0.00023624,7]
[348753149,1736771440362,-246.142301,0.00023624,7]
[348753150,1736771440372,-246.142301,0.00023624,7]
[348753151,1736771440381,-246.142301,0.00023624,7]
[348753152,1736771440390,-246.142299,0.00023624,7]
[348753153,1736771440399,-482.227334,0.00023624,7]
[348753154,1736771440409,-482.227334,0.00023624,7]
[348753155,1736771440419,-482.227334,0.00023624,7]
[348753156,1736771440428,-482.227334,0.00023624,7]
[348753157,1736771440437,-482.227334,0.00023624,7]
[348753158,1736771440446,-482.227334,0.00023624,7]
[348753159,1736771440456,-482.227334,0.00023624,7]
[348753160,1736771440465,-482.227334,0.00023624,7]
[348753161,1736771440475,-482.227334,0.00023624,7]
[348753162,1736771440484,-482.227334,0.00023624,7]
[348753163,1736771440494,-482.227334,0.00023624,7]
[348753164,1736771440503,-482.227334,0.00023624,7]
[348753165,1736771440512,-482.227334,0.00023624,7]
[348753166,1736771440521,-482.227334,0.00023624,7]
[348753167,1736771440531,-482.227334,0.00023624,7]
[348753168,1736771440540,-482.227334,0.00023624,7]
[348753169,1736771440550,-482.227334,0.00023624,7]
[348753170,1736771440560,-482.227334,0.00023624,7]
[348753171,1736771440570,-482.227334,0.00023624,7]
[348753172,1736771440579,-482.227326,0.00023624,7]
[348753173,1736771440588,-151.0,0.00023624,7]
[348753174,1736771440597,-151.0,0.00023624,7]
[348753175,1736771440607,-151.0,0.00023624,7]
[348753176,1736771440615,-151.0,0.00023624,7]
[348753177,1736771440627,-151.0,0.00023624,7]
[348753178,1736771440636,-191.200894,0.00023624,7]
[348753179,1736771440646,-324.45381383,0.00023624,2]
[348753180,1736771440655,-14522.12683191,0.00023625,5]
[348753181,1736771440666,-17839.17914295,0.00023625,5]
[348753182,1736771440675,-151.0,0.00023625,7]
[348753183,1736771440685,-151.0,0.00023625,7]
[348753184,1736771440694,-151.0,0.00023625,7]